Cogmind - Beta 11 X9 @@@ ROGUE MODE // 2021.12.25 @ 06:09:43 // Winter2021/Sauler Player: sentrybuster Result: Destroyed by D-53 Grenadier with Mini Grenade Launcher Performance ------------- Evolutions (0) 0 Regions Visited (4) 800 Robots Destroyed (6) 30 Value Destroyed (211) 211 Prototype IDs (23) 460 Alien Tech Used (0) 0 Bonus (300) 300 TOTAL SCORE: 1801 Bonus ------- Aligned with FarCom 300 Cogmind --------- Core Integrity 0/250 Matter 273/300 Energy 99/100 System Corruption 0% Temperature Cool (0) Movement Core (50) Location -9/Mines Parts ------- > --- POWER (1) -------- (None) > --- PROPULSION (2) --- (None) > --- UTILITY (2) ------ (None) > --- WEAPON (2) ------- (None) > --- INVENTORY (5) ---- High-capacity Matter Pod (0) Light Assault Rifle Light Cannon Light Cannon Longsword +1 Peak State ------------ > --- POWER ------------ Ion Engine > --- PROPULSION ------- Aluminum Leg Aluminum Leg > --- UTILITY ---------- Medium Storage Unit Targeting Computer > --- WEAPON ----------- Medium Laser Light Cannon > --- INVENTORY -------- Ion Engine Light Treads Light Treads High-capacity Matter Pod Sensor Array Light Assault Rifle Light Cannon Light Cannon Grenade Launcher Longsword +1 [Rating: 8] Favorites ----------- Power Ion Engine Engine Ion Engine Propulsion Aluminum Leg Treads Light Treads Leg Aluminum Leg Utility Targeting Computer Storage Medium Storage Unit Processor Targeting Computer Weapon Medium Laser Energy Gun Medium Laser Ballistic Gun Light Assault Rifle Ballistic Cannon Light Cannon Build | -11 -10 -10 -10 -9 ------- Run | Scr Mat Min Exi Min Slots Evolved . | . . . . . Power . | . . . . . Propulsion . | . . . . . Utility . | . . . . . Weapon . | . . . . . Parts Attached 15 | 6 8 . . 1 Power 2 | 1 1 . . . Engine 2 | 1 1 . . . Core . | . . . . . Reactor . | . . . . . Propulsion 4 | 2 1 . . 1 Treads 1 | . . . . 1 Leg 3 | 2 1 . . . Wheel . | . . . . . Hover . | . . . . . Flight . | . . . . . Utility 3 | 1 2 . . . Device . | . . . . . Storage 2 | 1 1 . . . Processor 1 | . 1 . . . Hackware . | . . . . . Protection . | . . . . . Artifact . | . . . . . Weapon 6 | 2 4 . . . Energy Gun 2 | 1 1 . . . Energy Cannon . | . . . . . Ballistic Gun 2 | 1 1 . . . Ballistic Cannon 2 | . 2 . . . Launcher . | . . . . . Special Weapon . | . . . . . Impact Weapon . | . . . . . Slashing Weapon . | . . . . . Piercing Weapon . | . . . . . Special Melee Weapon . | . . . . . Unidentified Prototypes . | . . . . . Parts Lost 7 | . . . . 7 Power 1 | . . . . 1 Propulsion 3 | . . . . 3 Utility 1 | . . . . 1 Weapon 2 | . . . . 2 Highest Loss Streak 7 | . . . . 7 Average Slot Usage (%) 97 | . 98 100 100 91 Engine 13 | . 14 14 14 12 Leg 27 | . 28 28 28 25 Storage 13 | . 14 14 14 13 Processor 13 | . 12 14 14 13 Energy Gun 13 | . 14 14 14 12 Ballistic Gun 1 | . 3 . . . Ballistic Cannon 12 | . 9 14 14 13 Naked Turns 1 | . . . . 1 Heaviest Build 20 | 13 20 20 20 20 Greatest Support 20 | 20 20 20 20 20 Greatest Overweight (x) 2 | 2 . . . 1 Average Overweight (x) . | . . . . . Largest Inventory Capacity 10 | 8 10 10 10 10 Average Capacity 9 | 7 8 10 10 9 Most Carried 10 | 4 8 9 10 10 Average Carried 8 | 1 7 8 9 9 Final Capacity 10 | 8 10 10 10 5 Final Carried 10 | 4 8 9 10 5 Class Distribution -------------------- 100% | Mutant Dominant Class ---------------- Mutant | -10/Materials Mutant | -10/Mines Mutant | -10/Exiles Mutant | -9/Mines Resources | -11 -10 -10 -10 -9 ----------- Run | Scr Mat Min Exi Min Matter Collected 328 | 195 103 . . 30 Remotely . | . . . . . Salvage Created 200 | . 200 . . . Parts 8 | . 8 . . . Haulers Intercepted . | . . . . . Recyclers Shooed . | . . . . . Parts Field Recycled . | . . . . . Retrieved Matter . | . . . . . Parts Self-Destructed . | . . . . . Prevented . | . . . . . Kills | -11 -10 -10 -10 -9 ------- Run | Scr Mat Min Exi Min Combat Hostiles Destroyed 4 | . 4 . . . Cannons 1 | . 1 . . . AOE 2 | . 2 . . . Classes Destroyed 3 | . 3 . . . Operator 1 | . 1 . . . Watcher 1 | . 1 . . . Grunt 4 | . 4 . . . Best Kill Streak 2 | . 2 . . . Combat Bots Only 2 | . 2 . . . Max Kills in Single Turn 2 | . 2 . . . Gunslinging . | . . . . . Exploded 2 | . 2 . . . Melee . | . . . . . Uniques/NPCs Destroyed . | . . . . . Combat | -11 -10 -10 -10 -9 -------- Run | Scr Mat Min Exi Min Damage Taken 877 | . 155 . . 722 Core 258 | . 44 . . 214 Absorbed by Shields . | . . . . . Core Remaining (%) 100 | 100 . . . . Volleys Fired 16 | . 16 . . . Largest 2 | . 2 . . . Hottest 85 | . 85 . . . Shots Fired 31 | . 31 . . . Gun 23 | . 23 . . . Cannon 8 | . 8 . . . Launcher . | . . . . . Special . | . . . . . Kinetic 16 | . 16 . . . Thermal 15 | . 15 . . . Explosive . | . . . . . Electromagnetic . | . . . . . Robot Hit Streak 5 | . 5 . . . Robot Miss Streak 2 | . 2 . . . Penetration Max . | . . . . . Secondary Targets . | . . . . . Shots Hit Robots 18 | . 18 . . . Core Hits 11 | . 11 . . . Critical Kills . | . . . . . Critical Parts Destroyed . | . . . . . Critical Strikes 4 | . 4 . . . Burn 4 | . 4 . . . Melee Attacks . | . . . . . Impact . | . . . . . Slashing . | . . . . . Piercing . | . . . . . Sneak Attacks . | . . . . . Combat Hostiles . | . . . . . Follow-up Attacks . | . . . . . Damage Inflicted 342 | . 342 . . . Guns 152 | . 152 . . . Cannons 95 | . 95 . . . Explosions 95 | . 95 . . . Melee . | . . . . . Ramming . | . . . . . Kinetic 147 | . 147 . . . Thermal 100 | . 100 . . . Explosive . | . . . . . Electromagnetic 95 | . 95 . . . Impact . | . . . . . Slashing . | . . . . . Piercing . | . . . . . Highest Corruption . | . . . . . Average Corruption . | . . . . . Corruption Purged . | . . . . . Overload Shots . | . . . . . Overflow Damage . | . . . . . Projectiles . | . . . . . Explosions . | . . . . . Melee . | . . . . . Knockbacks . | . . . . . Impact . | . . . . . Kinetic . | . . . . . Secondary . | . . . . . Self-Inflicted Damage . | . . . . . Shots . | . . . . . Rammed . | . . . . . Targets Rammed . | . . . . . Kicked . | . . . . . Crushed . | . . . . . Highest Temperature 216 | . 216 . . . Average Temperature 89 | . 89 . . . Received Heat Transfer 84 | . 84 . . . Siege Activations . | . . . . . Robots Corrupted . | . . . . . Combat Hostiles . | . . . . . Parts Fried . | . . . . . Impact Corruptions . | . . . . . Robots Melted 1 | . 1 . . . Combat Hostiles 1 | . 1 . . . Parts Melted 1 | . 1 . . . Heat Transferred 592 | . 592 . . . Parts Sabotaged . | . . . . . Parts Stolen . | . . . . . Parts Stripped . | . . . . . Power Chain Reactions . | . . . . . Missiles Intercepted . | . . . . . Alert | -11 -10 -10 -10 -9 ------- Run | Scr Mat Min Exi Min Peak Influence 175 | . 175 67 . . Initial 67 | . . 67 . . Average 64 | . 121 67 . . Maximum Alert Level . | . . . . . Low Security (%) 100 | 100 100 100 . 100 Level 1 . | . . . . . Level 2 . | . . . . . Level 3 . | . . . . . Level 4 . | . . . . . Level 5 . | . . . . . High Security . | . . . . . Max Security . | . . . . . Squads Dispatched 1 | . 1 . . . Investigation . | . . . . . Extermination . | . . . . . Reinforcement 1 | . 1 . . . Assault . | . . . . . Garrison . | . . . . . Intercept . | . . . . . Construction Impeded . | . . . . . Haulers Reinforced . | . . . . . Active Scanning Responses . | . . . . . Cargo Convoy Interrupts . | . . . . . Stealth | -11 -10 -10 -10 -9 --------- Run | Scr Mat Min Exi Min Distress Signals . | . . . . . Communications Jammed . | . . . . . Distress Signals . | . . . . . Times Spotted 11 | . 9 . . 2 Peak Tracking Total 5 | . 5 . . 2 Tactical Retreats . | . . . . . Traps | -11 -10 -10 -10 -9 ------- Run | Scr Mat Min Exi Min Traps Triggered 3 | . 3 . . . Indirectly 1 | . 1 . . . Trap Hack Attempts . | . . . . . Triggered . | . . . . . Disarmed . | . . . . . Reprogrammed . | . . . . . Reused . | . . . . . Traps Extracted . | . . . . . Installed . | . . . . . Triggered . | . . . . . Exploded 1 | . . . 1 . Machines | -11 -10 -10 -10 -9 ---------- Run | Scr Mat Min Exi Min Machines Disabled 3 | . 3 . . . Max in Single Turn 1 | . 1 . . . Machines Sabotaged . | . . . . . Garrisons Compromised . | . . . . . Overloaded Fab Kills . | . . . . . Hacking | -11 -10 -10 -10 -9 --------- Run | Scr Mat Min Exi Min Machines Accessed 3 | . 2 . 1 . Terminals 2 | . 2 . . . Fabricators . | . . . . . Repair Stations . | . . . . . Recycling Units . | . . . . . Scanalyzers . | . . . . . Garrison Access . | . . . . . Total Hacks 8 | . 7 . 1 . Successful 6 | . 5 . 1 . Failed 2 | . 2 . . . Catastrophic . | . . . . . Database Lockouts . | . . . . . Manual 5 | . 4 . 1 . Terminals 7 | . 7 . . . Fabricators . | . . . . . Repair Stations . | . . . . . Recycling Units . | . . . . . Scanalyzers . | . . . . . Garrison Access . | . . . . . Terminal Hacks 4 | . 3 . 1 . Alert Level 1 | . 1 . . . Locate Traps 1 | . 1 . . . Hauler Manifests 1 | . 1 . . . EX-Prototype ID Bank 1 | . . . 1 . Fabricator Hacks . | . . . . . Repair Station Hacks . | . . . . . Recycling Unit Hacks . | . . . . . Scanalyzer . | . . . . . Garrison Access Hacks . | . . . . . Unauthorized Hacks 2 | . 2 . . . Terminals 2 | . 2 . . . Track 2 | . 2 . . . Fabricators . | . . . . . Repair Stations . | . . . . . Recycling Units . | . . . . . Scanalyzers . | . . . . . Garrison Access . | . . . . . Data Cores Recovered . | . . . . . Used . | . . . . . Hacking Detections 1 | . 1 . . . Full Trace Events . | . . . . . Feedback Events . | . . . . . Feedback Blocked . | . . . . . Robot Schematics Acquired . | . . . . . Robots Built . | . . . . . Authchips . | . . . . . Time . | . . . . . Total Robot Build Rating . | . . . . . Part Schematics Acquired . | . . . . . Parts Built . | . . . . . Authchips . | . . . . . Time . | . . . . . Total Part Build Rating . | . . . . . Parts Repaired . | . . . . . Time . | . . . . . Parts Recycled . | . . . . . Recycled Matter . | . . . . . Retrieved Matter . | . . . . . Retrieved Components . | . . . . . Parts Scanalyzed . | . . . . . Part Schematics Acquired . | . . . . . Parts Damaged . | . . . . . Bothacking | -11 -10 -10 -10 -9 ------------ Run | Scr Mat Min Exi Min Used RIF Installer . | . . . . . Robots Hacked . | . . . . . Non-combat . | . . . . . Combat . | . . . . . Robot Hacks Applied . | . . . . . Relay Couplers Released . | . . . . . Fabnet Peak Effective % . | . . . . . Robots Rewired . | . . . . . Allies Hacked . | . . . . . Hacks Repelled . | . . . . . Allies | -11 -10 -10 -10 -9 -------- Run | Scr Mat Min Exi Min Total Allies 2 | . . . . 2 Largest Group 2 | . . . . 2 Highest-Rated Group 38 | . . . . 38 Highest-Rated Ally 31 | . . . . 31 Total Orders . | . . . . . Ally Attacks 3 | . . . . 3 Total Damage 43 | . . . . 43 Kills . | . . . . . Allies Corrupted . | . . . . . Allies Melted . | . . . . . Intel | -11 -10 -10 -10 -9 ------- Run | Scr Mat Min Exi Min Robot Analysis Total . | . . . . . Derelict Logs Recovered 1 | . . . . 1 Drone Launches . | . . . . . Drone Recoveries . | . . . . . Exploration | -11 -10 -10 -10 -9 ------------- Run | Scr Mat Min Exi Min Turns Passed 899 | 66 307 35 288 203 Spaces Moved 634 | 47 201 29 240 117 Core 9 | 5 . . . 4 Treads 7 | . . . . 7 Legs 618 | 42 201 29 240 106 Wheels . | . . . . . Hover . | . . . . . Flight . | . . . . . Fastest Speed 50 | 50 120 120 120 50 Average Speed 119 | 114 120 120 120 121 Slowest Speed 190 | 150 120 120 120 190 Overloaded Moves . | . . . . . Propulsion Burnouts . | . . . . . Robots Hopped . | . . . . . Cave-ins Triggered . | . . . . . Exploration Rate (%) 30 | 4 40 11 62 33 Regions Visited 4 Branch Regions 3 Pre-discovered Areas 2 | . . . . 2 Known Exits Taken . | . . . . . Unknown Exits Taken 4 | 1 1 1 1 . Scrap Searched 1 | . . . . 1 Spaces Dug . | . . . . . Terrain Destroyed . | . . . . . Melee . | . . . . . Projectile . | . . . . . AOE . | . . . . . Terrain Rammed . | . . . . . Walls Destroyed . | . . . . . Machines Disabled . | . . . . . Actions | -11 -10 -10 -10 -9 --------- Run | Scr Mat Min Exi Min Total 739 | 56 235 29 240 179 Wait 62 | . 4 . . 58 Move 630 | 46 200 28 239 117 Hop . | . . . . . Pick Up 12 | 4 5 1 1 1 Fast Attach 11 | 6 5 . . . Attach 1 | . . . . 1 Detach . | . . . . . Swap 3 | . 3 . . . Drop 4 | . 2 . . 2 Fire 16 | . 16 . . . Melee . | . . . . . Ram . | . . . . . Kick . | . . . . . Crush . | . . . . . Escape Stasis . | . . . . . Rewire . | . . . . . Trap . | . . . . . Miscellaneous . | . . . . . Route ------- -11/Scrapyard -10/Materials (discovered 2 exits: [*Mat] / [*Min]) -10/Mines -10/Exiles (discovered 2 exits: [*Min x2]) -9/Mines History --------- Turn | Location | Event 16 | -11/Scrapyard | Discovered new exit (range 16) 67 | -11/Scrapyard | Entered Materials 245 | -10/Materials | Discovered new exit (range 5) 310 | -10/Materials | Build established: Mutant 360 | -10/Materials | Discovered new exit (range 11) 374 | -10/Materials | Entered Mines 395 | -10/Mines | YI-UF0 nonchalantly dropped a Grenade Launcher on the ground 404 | -10/Mines | Deemed a non-threat by the Exiles lab entrance 404 | -10/Mines | Discovered new exit (range 5) 409 | -10/Mines | Entered Exiles 430 | -10/Exiles | Discovered new exit (range 14) 448 | -10/Exiles | Met 8R-AWN 465 | -10/Exiles | Met EX-HEX 511 | -10/Exiles | Met EX-DEC 529 | -10/Exiles | Met EX-BIN 544 | -10/Exiles | Aligned with FarCom system 545 | -10/Exiles | Given EX-Vault access code 573 | -10/Exiles | Opened EX-Vault 582 | -10/Exiles | Found Longsword +1 608 | -10/Exiles | Warned to stay clear of 0b10 Research branches 623 | -10/Exiles | Exiles lab attacked by MAIN.C 684 | -10/Exiles | Discovered new exit (range 14) 697 | -10/Exiles | Left Exiles lab with Longsword +1 697 | -10/Exiles | Entered Mines 698 | -9/Mines | Learned location of Storage (-9) 780 | -9/Mines | Assembled infested the area 898 | -9/Mines | Core integrity fell below 50% 900 | -9/Mines | Core integrity fell below 20% 900 | -9/Mines | Destroyed by D-53 Grenadier with Mini Grenade Launcher Last Messages --------------- 00881_ The unstable cave ceiling collapses. 00883_ R-06 Scavenger destroyed. 00884_ Aluminum Leg destroyed. 00884_ U-05 Engineer lays Concrete. 00890_ The unstable cave ceiling collapses. 00890_ U-05 Engineer destroyed. 00891_ A pair of derelicts emerge from the shadows: "We're, um, lost. You wouldn't happen to know the way out of here, would you?" 00891_ The unstable cave ceiling collapses. 00895_ Lgt. Treads destroyed. 00896_ Lgt. Cannon destroyed. 00896_ Dropped Med. Storage Unit. 00896_ U-05 Engineer lays Concrete. 00898_ Dropped Sensor Array. 00899_ The unstable cave ceiling collapses. 00899_ Acquired Longsword +1. 00899_ Targeting Computer destroyed. 00899_ D-53 Grenadier suffers critical hit (Burn). 00899_ U-05 Engineer lays Concrete. 00900_ The unstable cave ceiling collapses. Map ----- +----------------------------------------------------+ | #????????????????## ## ##????????????????????? | | #????????????????# ##?????????????????????? | | ##??????????###### #??????????????????????? | | ###????????# ! #??????????????????????? | | ##???????# ##??????????????????????? | | #???????# ######## #???????????????????????? | | #???????# #??????# #???????????????????????? | | ##???????# #??????# #???????????????????????? | | ##???????# ######?# ###########?????????????? | | ###????## ### #???#####?????? | | ## ##??## ######### #?## ### | | ?## #### """ #???## ## % | | ??## """ #### ???? | | ???## """ # % # | | ????## ## """ % # | | ?????## #### ############## " " # | | ??????# #??## ##?????????#### | | ??????# #???#####?????????## # # =*% ### ?? | | ??????# ????????????????## # = #?????? | | ??????## #?????########### #???????? | | ???????# #?????# ## # # #???????? | | ???????## ##?????# ##?##???????? | | ?????????##??????# # # d%! #???????????? | | ????????????????## d%= #???????????? | | ????????????????# g= #???????????? | | ???????????????# *@ # #???????????? | | ??????????????# ] #???????????? | | ????????????# u r ####???????????? | | ???????????# z # ##??????????????? | | ??????????# ?## # # ###???????????????? | | ??????????? ###????###### #????????????????? | | ??????????? ??????????????? """ #???????????????? | | ??????????????????????????? """ ??????????????? | | ??????????????????????????? """ ?????????????? | | ??????????????????????????? ????????????? | | ???????????????????????????##??? ???????????? | | ???????????????????????????????? ???????????? | | ????????????????????????????????? ????????????? | | ?????????????????????????????????? ?????????????? | | ?????????????????????????????????????????????????? | | ?????????????????????????????????????????????????? | | ?????????????????????????????????????????????????? | | ?????????????????????????????????????????????????? | | ?????????????????????????????????????????????????? | | ?????????????????????????????????????????????????? | | ?????????????????????????????????????????????????? | | ?????????????????????????????????????????????????? | | ?????????????????????????????????????????????????? | | ?????????????????????????????????????????????????? | | ?????????????????????????????????????????????????? | +----------------------------------------------------+ Best States ------------- Heat Dissipation 25 Energy Generation 10 Energy Capacity 250 Matter Stores 273 Matter Capacity 300 Sight Range 16 Terrain Scan Density 10 Evasion (%) 55 Targeting Accuracy 5 Recoil Reduction 1 Item Schematics ----------------- None Robot Schematics ------------------ None Fabricated ------------ Nothing Alien Tech Used ----------------- None Achievements -------------- None Challenges ------------ None Game ------ Seed PointyPointyManipulator Manual? 0 Play Time 00:14:57 Cumulative 310.4 hours Start 2021.12.25 @ 05:54:52 End 2021.12.25 @ 06:09:43 Sessions 1 Manual Loads 0 Difficulty Rogue Special Mode Winter2021/Sauler Game No. 396 Rogue 392 Adventurer 0 Explorer 4 Win Type - Total 5 Types 4/0/0/1/0/0/0/0/0 Lore% 77 Gallery% 85 Achievement% 63 Wizard Run 0 Options --------- ASCII 1 Keyboard 1 Movement Numpad Keybinds 0 Fullscreen 2 Font 16/Proggy Map View 76x50 Tactical HUD 1 Map Filters NONE Filters NONE Steam 1 RUN: a96b5680-7b42-4802-9e27-75aa8ac471cc